{"text_format":"1","workbook":"xlsx","n_sheets":9,"sheets":["Legend","CAN-Input","Private CAN-Input","Private CAN-Output","CAN-Output","LIN-Input","LIN-Output","EMS-Input","EMS-Output"],"not_rendered":{"charts":0,"images":0,"macros":1,"external_links":0,"defined_names":9,"comments":2,"pivot_tables":0},"unopened":[],"bounds":{"document_bytes":16777216,"sheet_cells":100000,"rows_first":2000,"rows_last":500,"rows_between":2000,"halvings":0,"cell_chars":16384,"cell_head_chars":4096},"cells_cut":0,"cells_raw":0,"read":"whole","date_system":"1900"}

{"sheet":"Legend","index":0,"n_rows":17,"n_cols":3,"rows_kept":17,"cut":false,"hidden":false,"merged":[]}
[]
[]
[]
[]
[null,"PROJECTS"]
[]
[null,"D","Should be an active input signal for that project and it exists debug signals accordingly."]
[null,"x","Should be an active input signal for that project, but it will be without debug signals."]
[null,"-","No signal implementation for this project."]
[]
[]
[]
[null,"SPM"]
[]
[null,"o","Signal owner"]
[null,"x","Signal user"]
[null,"-","Not using this signal"]

{"sheet":"CAN-Input","index":1,"n_rows":10,"n_cols":94,"rows_kept":10,"cut":false,"hidden":false,"merged":[[1,10,1,22]]}
[null,null,null,null,null,null,null,null,null,null," "," "]
[null,"Variable Type",null,"MODEL DATA",null,null,null,null,null,null,"PROJECTS",null,null,null,null,null,null,null,null,null,null,null,null,null,"SPM",null,null,null,null,null,null,null,null,null,null,null,null,null,null,null,null,null,null,null,null,null,null,null,null,null,null,null,null,null,null,null,null,null,null,null,"INTERFACE DATA"]
[null,"CAN Interface - Input signals",null,"Type","Min","Max","Unit","Description","Initial",null,"VED4_GENII","VED4_GENIII","VEP4_GENII","VEP4_GENII_7DCT","VEP4_GENIII","VEP4_GENII_HYBRID","VEP4_GENII_PS14","Hybrid Unique","GEP3_HEP7","GEP3_HRE","GEP3_PFI_HEV","GEP3_SPA","GEP3_BEV",null,"PVC","AC","AES","EL AC","MEC","OIL(Level)","Oil(Quality)","Oil","OilPrMon","VcMecPc","VcMecPcMon","VcPpmEem","REG","ScDep","CMB","DCL (Dia)","PEM","NVM","PpmHvem","PpmImob","PpmPsm","PpmSt","PpmRc","FSD","TmAwp","TmAf","TmHcc","TmEfl","Tm","TmStrt","TcDir","Diag_Monitor","ScrLvl","CEC","PpmMvem",null,"EUCD027","C1MCA017","SPA1500 SPA1510 ","SPA1600 SPA1610 ","SPA1700 SPA1710 ","SPA1800 SPA1810 ","SPA1900 SPA1910 ","SPA2000 SPA2010 ","SPA2210","SPA2310 SPA2410","SPA2510","SPA2710","SPA2810","NDdT [ms]","Locked\nSupplier field:Denso VEP4 GENIII for X2","Locked\nSupplier field:Denso VED4 GENIII for X2","Locked Supplier field:Denso VED4 13w46Status: PP","Locked Supplier field:Denso VEP4 13w35Status: PP","Locked Supplier field:Denso VED4 SPAStatus: SOP G400","Locked Supplier field:Denso VED4 SPAStatus: MP1 14G200","Locked Supplier field:Denso VEP4 SPAStatus: 516H 16H100","Locked Supplier field:Denso VEP4 SPAStatus: SOP K400","Locked\nSupplier field:Denso VED4_GENII Status: 17E100","Locked\nSupplier field:Denso VEP4_GENII Status: 17E100","Locked\nSupplier field:Denso VEP4_GENII_HYBRID Status: 17E100","Locked Supplier field:Denso VED VEA 516A, 54X Status: 16B100","Locked Supplier field:Denso VEP VEA 516A, 54X Status: 16A100","Vsim Name SPA","Vsim Name minSPA","Vsim Name Chassi","Vsim Name OPTSAS","RBPetroldT [ms]","Supplier field: GEP3_SPA, D000 SW","Comment"]
[]
[null,"sVcAc_D_EngRunReqClim",{"$f":"IF(COUNTIF(B:B,B5)>1,\"Duplicate\",\"\")","v":""},"UInt8",0,3,"-","Engine running request (inhibit stop) from climate",0,null,"-","D","-","-","-","-","-","-","-","-","-","-","-",null,"o","-","-","-","-","-","-","-","-","-","-","-","-","-","-","-","-","-","-","-","-","-","-","-","-","-","-","-","-","-","-","-","-","-","-",null,"EngRun_D_ReqClimt","EngRun_D_ReqClimt","NO CONNECTION","NO CONNECTION","NO CONNECTION","NO CONNECTION","NO CONNECTION","NO CONNECTION","NO CONNECTION","NO CONNECTION","NO CONNECTION","NO CONNECTION","NO CONNECTION",10,null,"Scn_IFM_TrsmActrPosn","Scn_EngRunReqClimt","Scn_EngRunReqClimt","-","-","-","-","-","-","-","-","-","*0","*0","-","-",10,"-"]
[null,"sVcAcc_a_Max","","Float32",-5,5,"m/s2","Max acceleration request from ACC",0,null,"-","S","-","-","-","-","-","-","-","-","-","-","-",null,"o","-","-","-","-","-","-","-","-","-","-","-","-","-","-","-","-","-","-","-","-","-","-","-","-","-","-","-","-","-","-","-","-","-","-",null,"ACCMaxAccelerationReq","ACCMaxAccelerationReq","NO CONNECTION","NO CONNECTION","NO CONNECTION","NO CONNECTION","NO CONNECTION","NO CONNECTION","NO CONNECTION","NO CONNECTION","NO CONNECTION","NO CONNECTION","NO CONNECTION",40,null,"Scn_IFM_VehSpdLgtSafe","Scn_ACC_MaxAccReq_Raw","Scn_ACC_MaxAccReq_Raw","-","-","-","-","-","-","-","-","-","-","-","ACCMaxAccelerationReq","*-5",40,"-"]
[null,"sVcAcc_a_MaxRaw","","Float32",-5,5,"m/s2","Unfilted max acceleration request from ACC",0,null,"-","-","-","-","-","-","-","-","-","-","-","-","-",null,"o","-","-","-","-","-","-","-","-","-","-","-","-","-","-","-","-","-","-","-","-","-","-","-","-","-","-","-","-","-","-","-","-","-","-",null,"ACCAccelRequestRaw","ACCAccelRequestRaw","NO CONNECTION","NO CONNECTION","NO CONNECTION","NO CONNECTION","NO CONNECTION","NO CONNECTION","NO CONNECTION","NO CONNECTION","NO CONNECTION","NO CONNECTION","NO CONNECTION",40,null,null,"Scn_ACC_AccelRequestRaw","Scn_ACC_AccelRequestRaw","-","-","-","-","-","-","-","-","-","-","-","ACCAccelRequestRaw","*-5",40,"-"]
[null,"sVcAccm_D_ElacCmprState","","UInt8",0,3,"-","Actual AC compressor status",0,null,"-","-","-","-","-","-","-","D","-","-","-","-","-",null,"-","-","-","o","-","-","-","-","-","-","-","-","-","-","-","-","-","-","-","-","x","-","-","-","-","-","-","-","-","-","-","-","-","-","-",null,"ElacCmprStats_D_Actl","ElacCmprStats_D_Actl","CmprSts","CmprSts","CmprSts","CmprSts","CmprSts","CmprSts","CmprSts","CmprSts","CmprSts","CmprSts","CmprSts",10,null,null,"Scn_ChrMode","Scn_ChrMode","-","-","-","-","-","-","-","-","-","-","-","-","-",10,"-"]
[null,"sVcAccm_I_ElacCmprHvActl","","Float32",0,127.5,"A","Actual AC compressor HV current consumption",0,null,"-","-","-","-","-","-","-","D","-","-","-","-","-",null,"-","-","-","o","-","-","-","-","-","-","-","-","-","-","-","-","-","-","-","-","-","-","-","-","-","-","-","-","-","-","-","-","-","-","-",null,"ElacCmprHvSide_I_Actl","ElacCmprHvSide_I_Actl","CmprI","CmprI","CmprI","CmprI","CmprI","CmprI","CmprI","CmprI","CmprI","CmprI","CmprI",160,null,null,"-","-","-","-","-","-","-","-","-","-","-","-","-","-","-",160,"-"]
[null,"sVcAccm_Te_ElacCmprActl","","Float32",-50,205,"deg C","Actual AC compressor power module temperature",0,null,"-","-","-","-","-","-","-","D","-","-","-","-","-",null,"-","-","-","o","-","-","-","-","-","-","-","-","-","-","-","-","-","-","-","-","-","-","-","-","-","-","-","-","-","-","-","x","-","-","-",null,"ElacCmpr_Te_Actl","ElacCmpr_Te_Actl","CmprT","CmprT","CmprT","CmprT","CmprT","CmprT","CmprT","CmprT","CmprT","CmprT","CmprT",160,null,null,"-","-","-","-","-","-","-","-","-","-","-","-","-","-","-",160,"-"]

{"sheet":"Private CAN-Input","index":2,"n_rows":10,"n_cols":68,"rows_kept":10,"cut":false,"hidden":false,"merged":[[1,10,1,12],[1,46,1,67]]}
[]
[null,"Variable Type",null,"MODEL DATA",null,null,null,null,null,null,"PROJECTS",null,null,null,"SPM",null,null,null,null,null,null,null,null,null,null,null,null,null,null,null,null,null,null,null,null,null,null,null,null,null,null,null,null,null,null,null,"INTERFACE DATA"]
[null,"CAN Interface - Input signals",null,"Type","Min","Max","Unit","Description","Initial",null,"VED4_GENII","VED4_GENIII","VEP4_GENIII",null,"PVC","AC","AES","EL AC","MEC","OIL(Level)","Oil(Quality)","Oil","OilPrMon","VcMecPc","VcMecPcMon","REG","ScDep","CMB","DCL (Dia)","PEM","NVM","PpmEem","PpmImob","PpmPsm","PpmSt","PpmRc","FSD","TmAwp","TmAf","TmHcc","TmEfl","Tm","TmStrt","TcDir","Diag_Monitor",null,"EUCD027","C1MCA017","SPA1500 SPA1510 ","SPA1600 SPA1610 ","SPA1700 SPA1710 ","SPA1800 SPA1810 ","SPA1900 SPA1910 ","SPA2000 SPA2010 ","SPA2210","SPA2310 SPA2410","SPA2510","SPA2710","SPA2810","NDdT [ms]","VEA GENIII VCC request (Denso name or CRE number) for X2","Locked Supplier field:Denso VEP4 GENIII for X2","Locked Supplier field:Denso VED4 GENIII for X2","Locked Supplier field:Denso VED4 13w46Status: PP","Locked Supplier field:Denso VED4 GENII 17w20Status: E2/SM","Locked Supplier field:Denso VEP4 13w35Status: PP","RBPetroldT [ms]","Supplier field: GEP3_SPA, D000 SW"]
[]
[null,"sVcTc_D_TrnState",{"$f":"IF(COUNTIF(B:B,B5)>1,\"Duplicate\",\"\")","v":""},"UInt8",0,3,"-","Indicates whether a shift is executed or not",0,null,"-","D","-",null,"o","-","-","-","-","-","-","-","-","-","-","-","-","-","-","-","-","-","-","-","-","-","-","-","-","-","-","-","-","-","-",null,"TrnState_D_Actl","TrnState_D_Actl",null,null,null,null,null,null,null,null,null,null,null,10,null,null,null,"Scn_TrnState","Scn_TrnState","Scn_TrnState",10]
[null,"sVcTc_n_GearBoxOut","","Float32",0,10000,"rpm","Output shaft revolution speed of gearbox",0,null,"-","S","-",null,"o","-","-","-","-","-","-","-","-","-","-","-","-","-","-","-","-","-","-","-","-","-","-","-","-","-","-","-","-","-","-",null,"GearBoxOutputSpeed","GearBoxOutputSpeed",null,null,null,null,null,null,null,null,null,null,null,10,null,null,null,"Scn_GearBoxOutSpd","Scn_GearBoxOutSpd","Scn_GearBoxOutSpd",10]
[null,"sVcTc_p_LockUp","","Float32",0,16383,"gf/cm2","AW Pressure request to LU",0,null,"-","-","-",null,"o","-","-","-","-","-","-","-","-","-","-","-","-","-","-","-","-","-","-","-","-","-","-","-","-","-","-","-","-","-","-",null,"TrnLockUpPres_D_Actl","TrnLockUpPres_D_Actl",null,null,null,null,null,null,null,null,null,null,null,10,null,null,null,"Scn_LockUpPres","Scn_LockUpPres","Scn_LockUpPres",10]
[null,"sVcTc_Tq_GearBoxIn","","Float32",-10000,10000,"Nm","Input shaft torque of gearbox",0,null,"-","-","-",null,"o","-","-","-","-","-","-","-","-","-","-","-","-","-","-","-","-","-","-","-","-","-","-","-","-","-","-","-","-","-","-",null,"TrnInTq_D_Actl","TrnInTq_D_Actl",null,null,null,null,null,null,null,null,null,null,null,10,null,null,null,"Scn_GearBoxInTrq","Scn_GearBoxInTrq","Scn_GearBoxInTrq",10]
[null,"sVcTc_D_HotState","","UInt8",0,3,"-","Hot state",0,null,"-","-","-",null,"o","-","-","-","-","-","-","-","-","-","-","-","-","-","-","-","-","-","-","-","-","-","-","-","-","-","-","-","-","-","-",null,"HotState_D_Actl","HotState_D_Actl",null,null,null,null,null,null,null,null,null,null,null,10,null,null,null,"Scn_HotStateActl","Scn_HotStateActl","Scn_HotStateActl",10]
[null,"yVcTc_B_ShiftInhb","","Bool","-","-","-","Flag for suppresses all gearshifts",0,null,"-","-","-",null,"o","-","-","-","-","-","-","-","-","-","-","-","-","-","-","-","-","-","-","-","-","-","-","-","-","-","-","-","-","-","-",null,"TrnShiftInh_B_Req","TrnShiftInh_B_Req",null,null,null,null,null,null,null,null,null,null,null,10,null,null,null,"Ycn_ShiftInhb","Ycn_ShiftInhb","Ycn_ShiftInhb",10]

{"sheet":"Private CAN-Output","index":3,"n_rows":9,"n_cols":75,"rows_kept":9,"cut":false,"hidden":false,"merged":[[1,47,1,72],[1,10,1,12]]}
[]
[null,"Variable Type",null,"MODEL DATA",null,null,null,null,null,null,"PROJECTS",null,null,null,"SPM",null,null,null,null,null,null,null,null,null,null,null,null,null,null,null,null,null,null,null,null,null,null,null,null,null,null,null,null,null,null,null,null,"INTERFACE DATA"]
[null,"CAN Interface - Input signals",null,"Type","Min","Max","Unit","Description","Initial",null,"VED4_GENII","VED4_GENIII","VEP4_GENIII",null,"PVC","AC","AES","EL AC","MEC","OIL(Level)","Oil(Quality)","Oil","OilPrMon","VcMecPc","VcMecPcMon","REG","ScDep","CMB","DCL (Dia)","PEM","NVM","PpmEem","PpmImob","PpmPsm","PpmSt","PpmRc","FSD","TmAwp","TmAf","TmHcc","TmEfl","Tm","TmStrt","TcDir","Diag_Monitor","CEC",null,"EUCD025","EUCD027","C1MCA015","C1MCA016","C1MCA017","SPA1010","SPA1200 SPA1210 ","SPA1500 SPA1510 ","SPA1600 SPA1610 ","SPA1700 SPA1710 ","SPA1800 SPA1810 ","SPA1900 SPA1910 ","SPA2000 SPA2010 ","SPA2210","SPA2310 SPA2410","SPA2510","SPA2710","SPA2810","NDdT [ms]","Locked\nSupplier field:Denso VEP4 GENIII for X2","Locked\nSupplier field:Denso VED4 GENIII for X2","Locked Supplier field:Denso VED4 13w46Status: PP","Locked Supplier field:Denso VEP4 13w35Status: PP","Locked\nSupplier field:Denso VED4_GENII Status: 17E100","Locked\nSupplier field:Denso VEP4_GENII Status: 17E100","Locked\nSupplier field:Denso VEP4_GENII_HYBRID Status: 17E100","RBPetroldT [ms]","Supplier field: GEP3_SPA, D000 SW"]
[]
[null,"yVcSpLu_B_EngBrkReq",{"$f":"IF(COUNTIF(B:B,B5)>1,\"Duplicate\",\"\")","v":""},"Bool","-","-","-","Request to AW for engine brake on first gear, ie not free wheel.",0,null,"-","-","-",null,"o","-","-","-","-","-","-","-","-","-","-","-","-","-","-","-","-","-","-","-","-","-","-","-","-","-","-","-","-","-","-","-",null,"EngBrk_B_Req","EngBrk_B_Req","EngBrk_B_Req","EngBrk_B_Req","EngBrk_B_Req",null,null,null,null,null,null,null,null,null,null,null,null,null,10,null,null,"Scv_GearIntReq","Scv_GearIntReq","-","-","-",10]
[null,"sVcSpMon_D_GearIntReq",{"$f":"IF(COUNTIF(B:B,B6)>1,\"Duplicate\",\"\")","v":""},"UInt8",0,11,"-","Gear to transfer torque before the synchrone speed is reach",0,null,"-","-","-",null,"o","-","-","-","-","-","-","-","-","-","-","-","-","-","-","-","-","-","-","-","-","-","-","-","-","-","-","-","-","-","-","-",null,"TrnGearIntermediate_D_Req","TrnGearIntermediate_D_Req","TrnGearIntermediate_D_Req","TrnGearIntermediate_D_Req","TrnGearIntermediate_D_Req",null,null,null,null,null,null,null,null,null,null,null,null,null,10,null,null,"Scv_LockUpReq","Scv_LockUpReq","-","-","-",10]
[null,"sVcSpMon_D_LockUpReq",{"$f":"IF(COUNTIF(B:B,B7)>1,\"Duplicate\",\"\")","v":""},"UInt8",0,2,"-","Requested lock-up mode",0,null,"-","-","-",null,"o","-","-","-","-","-","-","-","-","-","-","-","-","-","-","-","-","-","-","-","-","-","-","-","-","-","-","-","-","-","-","-",null,"TrnLockUp_D_Req","TrnLockUp_D_Req","TrnLockUp_D_Req","TrnLockUp_D_Req","TrnLockUp_D_Req",null,null,null,null,null,null,null,null,null,null,null,null,null,10,null,null,"Scv_LockUpSlipSpdReq","Scv_LockUpSlipSpdReq","-","-","-",10]
[null,"sVcSpLu_n_LockUpSlipSpdReq",{"$f":"IF(COUNTIF(B:B,B8)>1,\"Duplicate\",\"\")","v":""},"Float32",-8000,8000,"rpm","Slip speed request for LU",0,null,"-","-","-",null,"o","-","-","-","-","-","-","-","-","-","-","-","-","-","-","-","-","-","-","-","-","-","-","-","-","-","-","-","-","-","-","-",null,"TrnLuSlipSpd_D_Req","TrnLuSlipSpd_D_Req","TrnLuSlipSpd_D_Req","TrnLuSlipSpd_D_Req","TrnLuSlipSpd_D_Req",null,null,null,null,null,null,null,null,null,null,null,null,null,10,null,null,"Scv_TrnModeReq","Scv_TrnModeReq","-","-","-",10]
[null,"sVcSpMon_D_TrnModeReq",{"$f":"IF(COUNTIF(B:B,B9)>1,\"Duplicate\",\"\")","v":""},"UInt8",0,7,"-","Signal is used for requesting neutral or engaged state of transmission. Note. State 4 require minimal transmission drag torque losses and allows running EOP. State 5 require minimal transmission drag torque losses and does not allow running EOP",0,null,"-","-","-",null,"o","-","-","-","-","-","-","-","-","-","-","-","-","-","-","-","-","-","-","-","-","-","-","-","-","-","-","-","-","-","-","-",null,"TrnMode_D_Req","TrnMode_D_Req","TrnMode_D_Req","TrnMode_D_Req","TrnMode_D_Req",null,null,null,null,null,null,null,null,null,null,null,null,null,10,null,null,"Scv_DrvModeActl","Scv_DrvModeActl","-","-","-",10]

{"sheet":"CAN-Output","index":4,"n_rows":9,"n_cols":95,"rows_kept":9,"cut":false,"hidden":false,"merged":[[1,10,1,22]]}
[]
[null,"Variable Type",null,"MODEL DATA",null,null,null,null,null,null,"PROJECTS",null,null,null,null,null,null,null,null,null,null,null,null,null,"SPM",null,null,null,null,null,null,null,null,null,null,null,null,null,null,null,null,null,null,null,null,null,null,null,null,null,null,null,null,null,null,null,null,null,null,"INTERFACE DATA","INTERFACE DATA","INTERFACE DATA","INTERFACE DATA"]
[null,"CAN Interface - Output signals",null,"Type","Min","Max","Unit","Description","Initial",null,"VED4_GENII","VED4_GENIII","VEP4_GENII","VEP4_GENII_7DCT","VEP4_GENIII","VEP4_GENII_HYBRID","VEP4_GENII_PS14","Hybrid Unique","GEP3_HEP7","GEP3_HRE","GEP3_PFI_HEV","GEP3_SPA","GEP3_BEV",null,"PVC","AC","AES","EL AC","MEC","OIL(Level)","Oil(Quality)","Oil","OilPrMon","VcMecPc","VcMecPcMon","REG","ScDep","CMB","DCL (Dia)","PEM","NVM","PpmHvem","PpmImob","PpmPsm","PpmSt","PpmRc","FSD","TmAwp","TmAf","TmHcc","TmEfl","Tm","TmStrt","TcDir","Diag_Monitor","CEC","SCR","SCR","PpmMvem","EUCD027","EUCD028","EUCD029","EUCD030","C1MCA017","SPA1500 SPA1510 ","SPA1600 SPA1610 ","SPA1700 SPA1710 ","SPA1800 SPA1810 ","SPA1900 SPA1910 ","SPA2000 SPA2010 ","SPA2210","SPA2310 SPA2410","SPA2510","SPA2710","SPA2810","NDdT [ms]","Locked\nSupplier field:Denso VEP4 GENIII for X2","Locked\nSupplier field:Denso VED4 GENIII for X2--","Locked Supplier field:Denso VED4 13w46Status: PP","Locked Supplier field:Denso VEP4 13w35Status: PP","Locked Supplier field:Denso VED4 SPAStatus: SOP G400","Locked Supplier field:Denso VED4 SPAStatus: MP1 14G200","Locked Supplier field:Denso VEP4 SPAStatus: 516H 16H100","Locked Supplier field:Denso VEP4 SPAStatus: SOP K400","Locked\nSupplier field:Denso VED4_GENII Status: 17E100","Locked\nSupplier field:Denso VEP4_GENII Status: 17E100","Locked\nSupplier field:Denso VEP4_GENII_HYBRID Status: 17E100","Locked Supplier field:Denso VED VEA 516A, 54X Status: 16B100","Locked Supplier field:Denso VEP VEA 516A, 54X Status: 16A100","Vsim Name SPA","Vsim Name minSPA","Vsim Name OPTSAS","RBPetroldT [ms]","Supplier field: GEP3_SPA, D000 SW","Comment"]
[]
[null,"sVcAc_D_AirCondCmpsrStats",{"$f":"IF(COUNTIF(B:B,B5)>1,\"Duplicate\",\"\")","v":""},"UInt8",0,7,"-","Aircond compressor status",0,null,"D","D","D","D","D","D","D","-","D","D","D","D","D",null,"-","o","-","-","-","-","-","-","-","-","-","-","-","-","-","-","-","-","-","-","-","-","-","-","-","-","-","-","-","-","-","-","-","-","-","ACCompressorStatusEVDC","ACCompressorStatusEVDC","ACCompressorStatusEVDC","ACCompressorStatusEVDC","ACCompressorStatusEVDC","CmptmtCoolgSts","CmptmtCoolgSts","CmptmtCoolgSts","CmptmtCoolgSts","CmptmtCoolgSts","CmptmtCoolgSts","CmptmtCoolgSts","CmptmtCoolgSts","CmptmtCoolgSts","CmptmtCoolgSts","CmptmtCoolgSts",10,"Scv_ACComStat","Scv_ACComStat","Scv_ACComStat","Scv_ACComStat","Scv_ACComStat","Scv_ACComStat","Scv_ACComStat","Scv_ACComStat","Scv_ACComStat","Scv_ACComStat","Scv_ACComStat","Scv_ACComStat","Scv_ACComStat","CmptmtCoolgSts","CmptmtCoolgSts","-",10,"Com_Tx_CmptmtCoolgSts","SPA: to be connected in SPA"]
[null,"sVcEac_D_ElacCmprRelease",{"$f":"IF(COUNTIF(B:B,B6)>1,\"Duplicate\",\"\")","v":""},"UInt8",0,3,"-","AC compressor release request",0,null,"-","-","-","-","-","-","-","x","-","-","-","-","-",null,"-","-","-","o","-","-","-","-","-","-","-","-","-","-","-","-","-","-","-","-","-","-","-","-","-","-","-","-","-","-","-","-","-","-","-","ElacCtl_D_Req","ElacCtl_D_Req","ElacCtl_D_Req","ElacCtl_D_Req","ElacCtlRleas_D_Req","CmprRunReq","CmprRunReq","CmprRunReq","CmprRunReq","CmprRunReq","CmprRunReq","CmprRunReq","CmprRunReq","CmprRunReq","CmprRunReq","CmprRunReq",160,null,null,"-","-","-","-","-","-","-","-","-","-","-","*T","*T","-",160,"-"]
[null,"sVcAc_X_AirCondDispEst",{"$f":"IF(COUNTIF(B:B,B7)>1,\"Duplicate\",\"\")","v":""},"Float32",0,100,"%","Estimated aircond compressor displacement",0,null,"-","-","-","-","-","-","-","-","-","-","-","-","-",null,"-","o","-","-","-","-","-","-","-","-","-","-","-","-","-","x","-","-","-","-","-","-","-","-","-","-","-","-","-","-","-","-","-","-","-","ACCompressorDisp","ACCompressorDisp","ACCompressorDisp","ACCompressorDisp","ACCompressorDisp","NO CONNECTION","NO CONNECTION","NO CONNECTION","NO CONNECTION","NO CONNECTION","NO CONNECTION","NO CONNECTION","NO CONNECTION","NO CONNECTION","NO CONNECTION","NO CONNECTION",160,null,null,"Scv_ACComDisp","Scv_ACComDisp","-","-","-","-","-","-","-","-","-","*T","*T","-",160,"-","SPA: removed"]
[null,"sVcEac_n_ElacCmprReq",{"$f":"IF(COUNTIF(B:B,B8)>1,\"Duplicate\",\"\")","v":""},"Float32",0,12750,"rpm","AC compressor rotational speed request",0,null,"-","-","-","-","-","-","-","x","-","-","-","-","-",null,"-","-","-","o","-","-","-","-","-","-","-","-","-","-","-","-","-","-","-","-","-","-","-","-","-","-","-","-","-","-","-","-","-","-","-","ElacCtl_N_Req","ElacCtl_N_Req","ElacCtl_N_Req","ElacCtl_N_Req","ElacCtl_N_Req","CmprSpdReq","CmprSpdReq","CmprSpdReq","CmprSpdReq","CmprSpdReq","CmprSpdReq","CmprSpdReq","CmprSpdReq","CmprSpdReq","CmprSpdReq","CmprSpdReq",160,null,null,"-","-","-","-","-","-","-","-","-","-","-","*T","*T","-",160,"-"]
[null,"sVcEac_D_HighAcDemand",{"$f":"IF(COUNTIF(B:B,B9)>1,\"Duplicate\",\"\")","v":""},"UInt8",0,3,"-","High cooling demand in the compartment, no battery cooling allowed",0,null,"-","-","-","-","-","-","-","x","-","-","-","-","-",null,"-","-","-","o","-","-","-","-","-","-","-","-","-","-","-","-","-","-","-","-","-","-","-","-","-","-","-","-","-","-","-","-","-","-","-","ElacCtlBattCoolInhibit_B_Actl","ElacCtlBattCoolInhibit_B_Actl","ElacCtlBattCoolInhibit_B_Actl","ElacCtlBattCoolInhibit_B_Actl","-","NO CONNECTION","NO CONNECTION","NO CONNECTION","NO CONNECTION","NO CONNECTION","NO CONNECTION","NO CONNECTION","NO CONNECTION","NO CONNECTION","NO CONNECTION","NO CONNECTION","-",null,null,"-","-","-","-","-","-","-","-","-","-","-","*T","*T",null,"-","-","SPA: removed"]

{"sheet":"LIN-Input","index":5,"n_rows":9,"n_cols":108,"rows_kept":9,"cut":false,"hidden":false,"merged":[[1,10,1,22]]}
[null,null,null,null,null,null,null,null,null,null,null,null,null,null,null,null,null,null,null,null,null,null,null,null,null,null,null,null,null,null,null,null,null,null,null,null,null,null,null,null,null,null,null,null,null,null,null,null,null,null,null,null,null,null,null,null,null,null,null,null,null,null,null,null,null,null,null,null,null,null,null,null,null,null,null,null,null,null,null,null,null,null,"SPA2110"]
[null,"Variable Type",null,"MODEL DATA",null,null,null,null,null,null,"PROJECTS",null,null,null,null,null,null,null,null,null,null,null,null,null,"SPM",null,null,null,null,null,null,null,null,null,null,null,null,null,null,null,null,null,null,null,null,null,null,null,null,null,null,null,null,null,null,null,null,null,"INTERFACE DATA"]
[null,"LIN Interface - Input signals",null,"Type","Min","Max","Unit","Description","Initial",null,"VED4_GENII","VED4_GENIII","VEP4_GENII","VEP4_GENII_7DCT","VEP4_GENIII","VEP4_GENII_HYBRID","VEP4_GENII_PS14","Hybrid Unique","GEP3_HEP7","GEP3_HRE","GEP3_PFI_HEV","GEP3_SPA","GEP3_BEV",null,"PVC","AC","AES","EL AC","MEC","OIL(Level)","Oil(Quality)","Oil","OilPrMon","VcMecPc","VcMecPcMon","REG","ScDep","CMB","DCL (Dia)","PEM","LINDi","NVM","PpmHvem","PpmImob","PpmPsm","PpmSt","PpmRc","FSD","TmAwp","TmAf","TmHcc","TmEfl","Tm","TmStrt","TcDir","CEC","Diag_Monitor",null,"EUCD027","C1MCA017","SPA001(E1.1)","SPA001(E1.3)","SPA0220(E2u2)","SPA0220(515A E1u1)","SPA0300(E3) SPA0310","SPA0310(515A M1)","SPA0320(E3 update1) SPA 0330","SPA0400(E4 VP & E4 VP upd) SPA0410","SPA0500 SPA0510","SPA0600 SPA0610","SPA0700 SPA0710","SPA0800 SPA0810","SPA0800 SPA0810 Prototype Build","SPA1010","SPA1110 SPA1110 + Hack ","SPA1200 SPA1210 ","SPA1500 SPA1510 ","SPA1600 SPA1610 ","SPA1700 SPA1710 ","SPA1800 SPA1810 ","SPA1900 SPA1910 ","SPA2000 SPA2010 ","SPA2210","SPA2310 SPA2410","SPA2510","SPA2710","SPA2810","NDdT [ms]","VEA GENIII VCC request (Denso name or CRE number) for X2 ","Locked\nSupplier field:Denso VED4 GENIII for X2","Locked\nSupplier field:Denso VEP4 GENIII for X0","Locked Supplier field:Denso VED4 13w46Status: PP","Locked Supplier field:Denso VED4 13w46Status: PP","Locked Supplier field:Denso VEP4 13w35Status: PP","Locked Supplier field:Denso VED4 SPAStatus: SOP G400","Locked Supplier field:Denso VED4 SPAStatus: MP1 14G200","Locked Supplier field:Denso VEP4 SPAStatus: 516H 16H100","Locked Supplier field:Denso VEP4 SPAStatus: SOP K400","Locked\nSupplier field:Denso VED4_GENII Status: 17E100","Locked\nSupplier field:Denso VEP4_GENII Status: 17E100","Locked\nSupplier field:Denso VEP4_GENII_HYBRID Status: 17E100","Locked Supplier field:Denso VED VEA 516A, 54X Status: 16B100","Locked Supplier field:Denso VEP VEA 516A, 54X Status: 16A100","Vsim Name Hev","Vsim Name Chassi","Vsim Name OPTSAS","RBPetroldT [ms]","Supplier field: GEP3_SPA, D000 SW"]
[]
[null,"sVcAgm_Z_VanePosRaw",{"$f":"IF(COUNTIF(B:B,B5)>1,\"Duplicate\",\"\")","v":""},"Float32",0,255,"-","Current position of grill shutter actuator. The four most significant bits gives one of 16 possible shutter positions. The four least significant bits are don't care, e.g 0x0?=closed, 0xF?=open. Init value should be 0x6F to distinguish from end positions.",0,null,"D","D","D","D","D","D","D","-","D","D","D","D","D",null,"-","-","-","-","-","-","-","-","-","-","-","-","-","-","-","-","-","-","-","-","-","-","-","-","-","o","-","-","x","-","-","-","-",null,"VanePos_Rt_ActlRaw","VanePos_Rt_ActlRaw","GrlShttrPosnRaw","GrlShttrPosnRaw","GrlShttrPosnRaw","GrlShttrPosnRaw","GrlShttrPosnRaw","GrlShttrPosnRaw","GrlShttrPosnRaw","GrlShttrPosnRaw","GrlShttrPosnRaw","GrlShttrPosnRaw","GrlShttrPosnRaw","GrlShttrPosnRaw","GrlShttrPosnRaw","GrlShttrPosnRaw","GrlShttrPosnRaw","GrlShttrPosnRaw","GrlShttrPosnRaw","GrlShttrPosnRaw","GrlShttrPosnRaw","GrlShttrPosnRaw","GrlShttrPosnRaw","GrlShttrPosnRaw","GrlShttrPosnRaw","GrlShttrPosnRaw","GrlShttrPosnRaw","GrlShttrPosnRaw","GrlShttrPosnRaw",160,null,"Scn_GrlShttrPosnRaw","Scn_GrlShttrPosnRaw","NOT CONNECTED","NOT CONNECTED","NOT CONNECTED","Scn_GrlShttrPosnRaw","Scn_GrlShttrPosnRaw","Scn_GrlShttrPosnRaw","Scn_GrlShttrPosnRaw","Scn_GrlShttrPosnRaw","Scn_GrlShttrPosnRaw","Scn_GrlShttrPosnRaw","Scn_GrlShttrPosnRaw","Scn_GrlShttrPosnRaw","-","-","-",128,"Com_Rx_GrlShttrPosnRaw"]
[null,"yVcAcm_B_TeFalt",{"$f":"IF(COUNTIF(B:B,B6)>1,\"Duplicate\",\"\")","v":""},"Bool","-","-","-","ACMTemperatureFault",0,null,"-","-","-","-","-","-","-","-","-","-","-","-","-",null,"-","-","-","-","-","-","-","-","-","-","-","-","-","-","-","-","-","-","-","-","-","-","-","-","-","o","-","-","x","-","-","-","-",null,"ACMTemperatureFault","ACMTemperatureFault","AltFltTRaw","AltFltTRaw","AltFltTRaw","AltFltTRaw","AltFltTRaw","AltFltTRaw","AltFltTRaw","AltFltTRaw","AltFltTRaw","AltFltTRaw","AltFltTRaw","AltFltTRaw","AltFltTRaw","AltFltTRaw","AltFltTRaw","AltFltTRaw","AltFltTRaw","AltFltTRaw","AltFltTRaw","AltFltTRaw","AltFltTRaw","AltFltTRaw","AltFltTRaw","AltFltTRaw","AltFltTRaw","AltFltTRaw","AltFltTRaw",160,null,null,null,"Ycn_ACMFault_Temp","Ycn_ACMFault_Temp","Ycn_ACMFault_Temp","-","-","-","-","-","-","-","-","-","-","-","-",128,"-"]
[null,"yVcAgm_B_VaneActFalt",{"$f":"IF(COUNTIF(B:B,B7)>1,\"Duplicate\",\"\")","v":""},"Bool","-","-","-","Indicate malfunctioning mechanical coupling between actuator and grill shutter vanes",0,null,"D","D","D","D","D","D","D","-","D","D","D","D","D",null,"-","-","-","-","-","-","-","-","-","-","-","-","-","-","-","-","-","-","-","-","-","-","-","-","-","o","-","-","x","-","-","-","x",null,"VaneActFalt_B_Actl","VaneActFalt_B_Actl","GrlShttrActrFlt","GrlShttrActrFlt","GrlShttrActrFlt","GrlShttrActrFlt","GrlShttrActrFlt","GrlShttrActrFlt","GrlShttrActrFlt","GrlShttrActrFlt","GrlShttrActrFlt","GrlShttrActrFlt","GrlShttrActrFlt","GrlShttrActrFlt","GrlShttrActrFlt","GrlShttrActrFlt","GrlShttrActrFlt","GrlShttrActrFlt","GrlShttrActrFlt","GrlShttrActrFlt","GrlShttrActrFlt","GrlShttrActrFlt","GrlShttrActrFlt","GrlShttrActrFlt","GrlShttrActrFlt","GrlShttrActrFlt","GrlShttrActrFlt","GrlShttrActrFlt","GrlShttrActrFlt",160,null,"Ycn_GrlShttrActrFlt","Ycn_GrlShttrActrFlt","NOT CONNECTED","NOT CONNECTED","NOT CONNECTED","Ycn_GrlShttrActrFlt","Ycn_GrlShttrActrFlt","Ycn_GrlShttrActrFlt","Ycn_GrlShttrActrFlt","Ycn_GrlShttrActrFlt","Ycn_GrlShttrActrFlt","Ycn_GrlShttrActrFlt","Ycn_GrlShttrActrFlt","Ycn_GrlShttrActrFlt","-","-","-",128,"Com_Rx_GrlShttrActrFlt"]
[null,"yVcAgm_B_VaneBlck",{"$f":"IF(COUNTIF(B:B,B8)>1,\"Duplicate\",\"\")","v":""},"Bool","-","-","-","Grill shutter actuator stuck",0,null,"D","D","D","D","D","D","D","-","D","D","D","D","D",null,"-","-","-","-","-","-","-","-","-","-","-","-","-","-","-","-","-","-","-","-","-","-","-","-","-","o","-","-","x","-","-","-","x",null,"VaneBlck_B_Actl","VaneBlck_B_Actl","GrlShttrBlkd","GrlShttrBlkd","GrlShttrBlkd","GrlShttrBlkd","GrlShttrBlkd","GrlShttrBlkd","GrlShttrBlkd","GrlShttrBlkd","GrlShttrBlkd","GrlShttrBlkd","GrlShttrBlkd","GrlShttrBlkd","GrlShttrBlkd","GrlShttrBlkd","GrlShttrBlkd","GrlShttrBlkd","GrlShttrBlkd","GrlShttrBlkd","GrlShttrBlkd","GrlShttrBlkd","GrlShttrBlkd","GrlShttrBlkd","GrlShttrBlkd","GrlShttrBlkd","GrlShttrBlkd","GrlShttrBlkd","GrlShttrBlkd",160,null,"Ycn_GrlShttrBlkd","Ycn_GrlShttrBlkd","NOT CONNECTED","NOT CONNECTED","NOT CONNECTED","Ycn_GrlShttrBlkd","Ycn_GrlShttrBlkd","Ycn_GrlShttrBlkd","Ycn_GrlShttrBlkd","Ycn_GrlShttrBlkd","Ycn_GrlShttrBlkd","Ycn_GrlShttrBlkd","Ycn_GrlShttrBlkd","Ycn_GrlShttrBlkd","-","-","-",128,"Com_Rx_GrlShttrBlkd"]
[null,"yVcAgm_B_VaneCalActv",{"$f":"IF(COUNTIF(B:B,B9)>1,\"Duplicate\",\"\")","v":""},"Bool","-","-","-","Grill shutter actuator end stop adaptation is ongoing",0,null,"D","D","D","D","D","D","D","-","D","D","D","D","D",null,"-","-","-","-","-","-","-","-","-","-","-","-","-","-","-","-","-","-","-","-","-","-","-","-","-","o","-","-","x","-","-","-","x",null,"VaneCalActv_B_Actl","VaneCalActv_B_Actl","GrlShttrCalActv","GrlShttrCalActv","GrlShttrCalActv","GrlShttrCalActv","GrlShttrCalActv","GrlShttrCalActv","GrlShttrCalActv","GrlShttrCalActv","GrlShttrCalActv","GrlShttrCalActv","GrlShttrCalActv","GrlShttrCalActv","GrlShttrCalActv","GrlShttrCalActv","GrlShttrCalActv","GrlShttrCalActv","GrlShttrCalActv","GrlShttrCalActv","GrlShttrCalActv","GrlShttrCalActv","GrlShttrCalActv","GrlShttrCalActv","GrlShttrCalActv","GrlShttrCalActv","GrlShttrCalActv","GrlShttrCalActv","GrlShttrCalActv",160,null,"Ycn_GrlShttrCalActv","Ycn_GrlShttrCalActv","NOT CONNECTED","NOT CONNECTED","NOT CONNECTED","Ycn_GrlShttrCalActv","Ycn_GrlShttrCalActv","Ycn_GrlShttrCalActv","Ycn_GrlShttrCalActv","Ycn_GrlShttrCalActv","Ycn_GrlShttrCalActv","Ycn_GrlShttrCalActv","Ycn_GrlShttrCalActv","Ycn_GrlShttrCalActv","-","-","-",128,"Com_Rx_GrlShttrCalActv"]

{"sheet":"LIN-Output","index":6,"n_rows":9,"n_cols":105,"rows_kept":9,"cut":false,"hidden":false,"merged":[[1,10,1,22]]}
[]
[null,"Variable Type",null,"MODEL DATA",null,null,null,null,null,null,"PROJECTS",null,null,null,null,null,null,null,null,null,null,null,null,null,"SPM",null,null,null,null,null,null,null,null,null,null,null,null,null,null,null,null,null,null,null,null,null,null,null,null,null,null,null,null,null,null,null,null,"INTERFACE DATA"]
[null,"LIN Interface - Output signals",null,"Type","Min","Max","Unit","Description","Initial",null,"VED4_GENII","VED4_GENIII","VEP4_GENII","VEP4_GENII_7DCT","VEP4_GENIII","VEP4_GENII_HYBRID","VEP4_GENII_PS14","Hybrid Unique","GEP3_HEP7","GEP3_HRE","GEP3_PFI_HEV","GEP3_SPA","GEP3_BEV",null,"PVC","AC","AES","EL AC","MEC","OIL(Level)","Oil(Quality)","Oil","OilPrMon","VcMecPc","VcMecPcMon","REG","ScDep","CMB","DCL (Dia)","PEM","NVM","PpmHvem","PpmImob","PpmPsm","PpmSt","PpmRc","FSD","TmAwp","TmAf","TmHcc","TmEfl","Tm","TmStrt","TcDir","Diag_Monitor","CEC",null,"EUCD027","C1MCA017","SPA001(E1.1)","SPA001(E1.3)","SPA0220(E2u2)","SPA0220(515A E1u1)","SPA0300(E3) SPA0310","SPA0310(515A M1)","SPA0320(E3 update1) SPA 0330","SPA0400(E4 VP & E4 VP upd) SPA0410","SPA0500 SPA0510","SPA0600 SPA0610","SPA0700 SPA0710","SPA0800 SPA0810","SPA0800 SPA0810 Prototype Build","SPA1010","SPA1110 SPA1110 + Hack ","SPA1200 SPA1210 ","SPA1500 SPA1510 ","SPA1600 SPA1610 ","SPA1700 SPA1710 ","SPA1800 SPA1810 ","SPA1900 SPA1910 ","SPA2000 SPA2010 ","SPA2210","SPA2310 SPA2410","SPA2510","SPA2710","SPA2810","NDdT [ms]","Locked\nSupplier field:Denso VEP4 GENIII for X2","Locked\nSupplier field:Denso VED4 GENIII for X2","Locked Supplier field:Denso VED4 13w46Status: PP","Locked Supplier field:Denso VEP4 13w35Status: PP","Locked Supplier field:Denso VED4 SPAStatus: SOP G400","Locked Supplier field:Denso VED4 SPAStatus: MP1 14G200","Locked Supplier field:Denso VEP4 SPAStatus: 516H 16H100","Locked Supplier field:Denso VEP4 SPAStatus: SOP K400","Locked\nSupplier field:Denso VED4_GENII Status: 17E100","Locked\nSupplier field:Denso VEP4_GENII Status: 17E100","Locked\nSupplier field:Denso VEP4_GENII_HYBRID Status: 17E100","Locked Supplier field:Denso VED VEA 516A, 54X Status: 16B100","Locked Supplier field:Denso VEP VEA 516A, 54X Status: 16A100","Vsim Name Hev","Vsim Name Chassi","Vsim Name OPTSAS","RBPetroldT [ms]","Supplier field: GEP3_SPA, D000 SW"]
[]
[null,"sVcTmAf_Z_VaneCtrlAngleReq",{"$f":"IF(COUNTIF(B:B,B5)>1,\"Duplicate\",\"\")","v":""},"Float32",0,255,"-","Requested grill shutter actuator opening. Signal is sent out on a 8 bit LIN-signal VanePos_Rt_Req. The four most significant bits gives one of 16 possible shutter positions. The four least significant bits are don't care, e.g 0x0? = closed, 0xF? = open.",0,null,"D","D","D","D","D","D","D","-","D","D","D","D","D",null,"-","-","-","-","-","-","-","-","-","-","-","-","-","-","-","-","-","-","-","-","-","-","-","-","o","-","-","x","-","-","-","-",null,"VanePos_Rt_Req","VanePos_Rt_Req","GrlShttrPosnReq","GrlShttrPosnReq","GrlShttrPosnReq","GrlShttrPosnReq","GrlShttrPosnReq","GrlShttrPosnReq","GrlShttrPosnReq","GrlShttrPosnReq","GrlShttrPosnReq","GrlShttrPosnReq","GrlShttrPosnReq","GrlShttrPosnReq","GrlShttrPosnReq","GrlShttrPosnReq","GrlShttrPosnReq","GrlShttrPosnReq","GrlShttrPosnReq","GrlShttrPosnReq","GrlShttrPosnReq","GrlShttrPosnReq","GrlShttrPosnReq","GrlShttrPosnReq","GrlShttrPosnReq","GrlShttrPosnReq","GrlShttrPosnReq","GrlShttrPosnReq","GrlShttrPosnReq",160,"Scv_VaneCtrlAngleReq","Scv_VaneCtrlAngleReq","NOT CONNECTED","NOT CONNECTED","Scv_VaneCtrlAngleReq","Scv_VaneCtrlAngleReq","Scv_VaneCtrlAngleReq","Scv_VaneCtrlAngleReq","Scv_VaneCtrlAngleReq","Scv_VaneCtrlAngleReq","Scv_VaneCtrlAngleReq","Scv_VaneCtrlAngleReq","Scv_VaneCtrlAngleReq","-","-","-",160,"Com_Tx_GrlShttrPosnReq"]
[null,"yVcTmAf_B_VaneCalEnbl",{"$f":"IF(COUNTIF(B:B,B6)>1,\"Duplicate\",\"\")","v":""},"Bool",0,1,"-","Trigger grill shutter actuator end stop adaptation (1 = start adaptation, 0 =do not start adaptation but will not abort ongoing adaptation). Must be combined with an end stop position request to specify direction.",0,null,"D","D","D","D","D","D","D","-","D","D","D","D","D",null,"-","-","-","-","-","-","-","-","-","-","-","-","-","-","-","-","-","-","-","-","-","-","-","-","o","-","-","x","-","-","-","-",null,"VaneCal_B_Enbl","VaneCal_B_Enbl","GrlShttrCalEna","GrlShttrCalEna","GrlShttrCalEna","GrlShttrCalEna","GrlShttrCalEna","GrlShttrCalEna","GrlShttrCalEna","GrlShttrCalEna","GrlShttrCalEna","GrlShttrCalEna","GrlShttrCalEna","GrlShttrCalEna","GrlShttrCalEna","GrlShttrCalEna","GrlShttrCalEna","GrlShttrCalEna","GrlShttrCalEna","GrlShttrCalEna","GrlShttrCalEna","GrlShttrCalEna","GrlShttrCalEna","GrlShttrCalEna","GrlShttrCalEna","GrlShttrCalEna","GrlShttrCalEna","GrlShttrCalEna","GrlShttrCalEna",160,"Ycv_VaneCalEnbl","Ycv_VaneCalEnbl","NOT CONNECTED","NOT CONNECTED","Ycv_VaneCalEnbl","Ycv_VaneCalEnbl","Ycv_VaneCalEnbl","Ycv_VaneCalEnbl","Ycv_VaneCalEnbl","Ycv_VaneCalEnbl","Ycv_VaneCalEnbl","Ycv_VaneCalEnbl","Ycv_VaneCalEnbl","-","-","-",160,"Com_Tx_GrlShttrCalEna"]
[null,"sVcTmAf_Z_SplrShttrPosnReq",{"$f":"IF(COUNTIF(B:B,B7)>1,\"Duplicate\",\"\")","v":""},"UInt8",0,255,"-","Requested spoiler shutter actuator opening.",0,null,"D","D","D","D","D","D","D","-","D","D","D","D","D",null,"-","-","-","-","-","-","-","-","-","-","-","-","-","-","-","-","-","-","-","-","-","-","-","-","o","-","-","-","-","-","-","-",null,null,null,"SplrShttrPosnReq","SplrShttrPosnReq","SplrShttrPosnReq","SplrShttrPosnReq","SplrShttrPosnReq","SplrShttrPosnReq","SplrShttrPosnReq","SplrShttrPosnReq","SplrShttrPosnReq","SplrShttrPosnReq","SplrShttrPosnReq","SplrShttrPosnReq","SplrShttrPosnReq","SplrShttrPosnReq","SplrShttrPosnReq","SplrShttrPosnReq","SplrShttrPosnReq","SplrShttrPosnReq","SplrShttrPosnReq","SplrShttrPosnReq","SplrShttrPosnReq","SplrShttrPosnReq","SplrShttrPosnReq","SplrShttrPosnReq","SplrShttrPosnReq","SplrShttrPosnReq","SplrShttrPosnReq",160,"Scv_SplrShttrPosnReq","Scv_SplrShttrPosnReq",null,null,"Scv_SplrShttrPosnReq","Scv_SplrShttrPosnReq","Scv_SplrShttrPosnReq","Scv_SplrShttrPosnReq","Scv_SplrShttrPosnReq","Scv_SplrShttrPosnReq","Scv_SplrShttrPosnReq","Scv_SplrShttrPosnReq","Scv_SplrShttrPosnReq",null,null,null,160,"Com_Tx_SplrShttrPosnReq"]
[null,"yVcTmAf_B_SplrShttrCalEna",{"$f":"IF(COUNTIF(B:B,B8)>1,\"Duplicate\",\"\")","v":""},"Bool",0,1,"-","Trigger spoiler shutter actuator end stop adaptation (1 = start adaptation, 0 =do not start adaptation but will not abort ongoing adaptation). Must be combined with an end stop position request to specify direction.",0,null,"D","D","D","D","D","D","D","-","D","D","D","D","D",null,"-","-","-","-","-","-","-","-","-","-","-","-","-","-","-","-","-","-","-","-","-","-","-","-","o","-","-","-","-","-","-","-",null,null,null,"SplrShttrCalEna","SplrShttrCalEna","SplrShttrCalEna","SplrShttrCalEna","SplrShttrCalEna","SplrShttrCalEna","SplrShttrCalEna","SplrShttrCalEna","SplrShttrCalEna","SplrShttrCalEna","SplrShttrCalEna","SplrShttrCalEna","SplrShttrCalEna","SplrShttrCalEna","SplrShttrCalEna","SplrShttrCalEna","SplrShttrCalEna","SplrShttrCalEna","SplrShttrCalEna","SplrShttrCalEna","SplrShttrCalEna","SplrShttrCalEna","SplrShttrCalEna","SplrShttrCalEna","SplrShttrCalEna","SplrShttrCalEna","SplrShttrCalEna",160,"Ycv_SplrShttrCalEna","Ycv_SplrShttrCalEna",null,null,"Ycv_SplrShttrCalEna","Ycv_SplrShttrCalEna","Ycv_SplrShttrCalEna","Ycv_SplrShttrCalEna","Ycv_SplrShttrCalEna","Ycv_SplrShttrCalEna","Ycv_SplrShttrCalEna","Ycv_SplrShttrCalEna","Ycv_SplrShttrCalEna",null,null,null,160,"Com_Tx_SplrShttrCalEna"]
[null,"sVcEac_D_ElacCmprRelease",{"$f":"IF(COUNTIF(B:B,B9)>1,\"Duplicate\",\"\")","v":""},"UInt8",0,3,"-","AC compressor release request",0,null,"D","D","D","D","D","D","D","D","D","D","D","D","D",null,"-","o","-","-","-","-","-","-","-","-","-","-","-","-","-","-","-","-","-","-","-","-","-","-","-","-","-","-","-","-","-","-",null,"ElacCtl_D_Req",null,"NO CONNECTION","CmprRunReq","CmprRunReq","CmprRunReq","CmprRunReq","CmprRunReq","CmprRunReq","CmprRunReq","CmprRunReq","CmprRunReq","CmprRunReq","CmprRunReq","CmprRunReq","CmprRunReq","CmprRunReq","CmprRunReq","CmprRunReq","CmprRunReq","CmprRunReq","CmprRunReq","CmprRunReq","CmprRunReq","CmprRunReq","CmprRunReq","CmprRunReq","CmprRunReq","CmprRunReq",160,"Scv_ElacCmprRelease","Scv_ElacCmprRelease","-","-","Scv_ElacCmprRelease","Scv_ElacCmprRelease","Scv_ElacCmprRelease","Scv_ElacCmprRelease","Scv_ElacCmprRelease","Scv_ElacCmprRelease","Scv_ElacCmprRelease","Scv_ElacCmprRelease","Scv_ElacCmprRelease","-","-","-",160,"Com_Tx_CmprRunReq"]

{"sheet":"EMS-Input","index":7,"n_rows":10,"n_cols":85,"rows_kept":10,"cut":false,"hidden":false,"merged":[[1,59,1,84],[1,24,1,57]]}
[]
[null,"Variable Type",null,"MODEL DATA",null,null,null,null,null,null,"PROJECTS",null,null,null,null,null,null,null,null,null,null,null,null,null,"SPM",null,null,null,null,null,null,null,null,null,null,null,null,null,null,null,null,null,null,null,null,null,null,null,null,null,null,null,null,null,null,null,null,null,null,"INTERFACE DATA"]
[null,"EMS Interface - Input signals",null,"Type","Min","Max","Unit","Description","Initial",null,"VED4_GENII","VED4_GENIII","VEP4_GENII","VEP4_GENII_7DCT","VEP4_GENIII","VEP4_GENII_HYBRID","VEP4_GENII_PS14","Hybrid Unique","GEP3_HEP7","GEP3_HRE","GEP3_PFI_HEV","GEP3_SPA","GEP3_BEV",null,"PVC","AC","AES","EL AC","MEC","OIL(Level)","Oil(Quality)","Oil","OilPrMon","VcMecPc","VcMecPcMon","REG","ScDep","CMB","DCL (Dia)","PEM","NVM","PpmHvem","PpmImob","PpmPsm","PpmSt","PpmRc","FSD","TmAwp","TmAf","TmHcc","TmEfl","Tm","TmStrt","TcDir","Diag_Monitor","CEC","Emiss","SCR",null,"NDdT [ms]","Locked Supplier field:Denso VED4 13w46Status: PP","Locked Supplier field:Denso VEP4 13w35Status: PP","VEA GENIII VCC request (Denso name or CRE number) for X2","Locked Supplier field:Denso VEP4 GENIII for X2","Locked\nSupplier field:Denso VED4 GENIII for X2--","VEA GENII 17wXX\nVCC request\n(Denso name or CRE number)\nfor VP update","Locked\nSupplier field:Denso VED4_GENII Status: 17E100","Locked\nSupplier field:Denso VEP4_GENII Status: 17E100","Locked\nSupplier field:Denso VEP4_GENII_HYBRID Status: 17E100","VEA SPA VCC request (Denso name or CRE number) 16H100","Locked Supplier field:Denso VED4 SPAStatus: SOP G400","Locked Supplier field:Denso VED4 SPAStatus: MP1 G200","Locked Supplier field:Denso VEP4 SPAStatus: 516H 16H100","Locked Supplier field:Denso VEP4 SPAStatus: SOP K400","VEA 516A, 54x VCC request (Denso name or CRE number) 16A100","Supplier field:Denso VED VEA 516A, 54x Status: 16D100","Supplier field:Denso VEPVEA 516A, 54x Status: 16A100","Vsim Name SPA","Vsim Name minSPA","Vsim Name Chassi","Vsim Name OPTSAS","Comment","RBPetroldT [ms]","GEP3_SPA VCC request (Bosch name or CRE number)","Supplier field: GEP3_SPA, D000 SW"]
[]
[null,"sVcAl_Tq_AltLoad",{"$f":"IF(COUNTIF(B:B,B5)>1,\"Duplicate\",\"\")","v":""},"Float32",0,100,"Nm","Alternator load",0,null,"D","D","D","D","D","D","D","-","D","D","D","D","-",null,"o","-","-","-","-","-","-","-","-","-","-","-","-","-","-","x","-","-","-","-","-","-","-","-","-","-","-","-","-","-","-","-","-","-",null,10,"Sal_ActAltTrq","Sal_ActAltTrq","Sal_ActAltTrq","Sal_ActAltTrq","Sal_ActAltTrq",null,"Sal_ActAltTrq","Sal_ActAltTrq","Sal_ActAltTrq",null,"Sal_ActAltTrq","Sal_ActAltTrq","Sal_ActAltTrq","Sal_ActAltTrq",null,"Sal_ActAltTrq","Sal_ActAltTrq","*0","*0","*0","*0",null,10,null,"Alt_trqDes"]
[null,"sVcBc_p_BrVacuum","","Float32","-","-","-","Brake Vacuum sensor from IO on ECM",0,null,"-","-","-","-","-","-","-","-","-","-","-","-","-",null,"o","-","-","-","-","-","-","-","-","-","-","-","-","-","-","-","-","-","-","-","-","-","-","-","-","-","-","-","-","-","-","-","-","-",null,10,"Scm_BrakeVacPres_Filter","Scm_BrakeVacPres_Filter",null,null,null,null,"-","-","-",null,"-","-","-","-",null,"-","-","*0","*0","-","-",null,10,null,"Not Implemented"]
[null,"yVcBc_B_DrBrOk","","Bool","-","-","-","Ok flag for DriverBraking signal",0,null,"-","-","-","-","-","-","-","-","-","-","-","-","-",null,"-","-","-","-","-","-","-","-","-","-","-","-","o","-","-","-","-","-","-","-","-","-","-","-","-","-","-","-","-","-","-","-","-","-",null,10,"Ycn_SigOKM_DrvBrk","Ycn_SigOKM_DrvBrk","-",null,null,null,"-","-","-",null,"-","-","-","-",null,"-","-","*1","*1",null,null,"SPA: Removed",10,null,"-"]
[null,"yVcBc_B_vVehRawOk","","Bool","-","-","-","Ok flag for raw vehicle speed signal",0,null,"S","-","-","-","-","-","-","-","-","-","-","-","-",null,"-","-","-","-","-","-","-","-","-","-","-","-","o","-","-","-","-","-","-","-","-","-","-","-","-","-","-","-","-","-","-","-","-","-",null,10,"Ycn_SigOKM_VSpdABS","Ycn_SigOKM_VSpdABS","-",null,"Scm_Ne",null,"-","-","-",null,"-","-","-","-",null,"-","-","*1","*1",null,null,"SPA: Removed",10,null,"-"]
[null,"yVcBc_B_TotWhBrkTrqOk","","Bool","-","-","-","Ok flag for total wheel brake torque signal",0,null,"-","-","-","-","-","-","-","-","-","-","-","-","-",null,"-","-","-","-","-","-","-","-","-","-","-","-","o","-","-","-","-","-","-","-","-","-","-","-","-","-","-","-","-","-","-","-","-","-",null,10,"Ycn_SigOKF_TotWhlBrkTrq_UD","Ycn_SigOKF_TotWhlBrkTrq_UD","-",null,null,null,"-","-","-",null,"NOT CONNECTED","NOT CONNECTED","NOT CONNECTED","NOT CONNECTED",null,"-","-","*1","*1",null,null,null,10,null,"-"]
[null,"yVcBc_B_VehicleSpeedOverGroundOk","","Bool","-","-","-","Ok flag for vehiclespeedover ground",0,null,"-","-","-","-","-","-","-","-","-","-","-","-","-",null,"-","-","-","-","-","-","-","-","-","-","-","-","o","-","-","-","-","-","-","-","-","-","-","-","-","-","-","-","-","-","-","-","-","-",null,10,"Ycn_SigOKM_VspdOverGnd","Ycn_SigOKM_VspdOverGnd","-",null,null,null,"-","-","-",null,"-","-","-","-",null,"-","-","*1","*1",null,null,"SPA: Removed",10,null,"-"]

{"sheet":"EMS-Output","index":8,"n_rows":10,"n_cols":85,"rows_kept":10,"cut":false,"hidden":false,"merged":[[1,10,1,22]]}
[]
[null,"Variable Type",null,"MODEL DATA",null,null,null,null,null,null,"PROJECTS",null,null,null,null,null,null,null,null,null,null,null,null,null,"SPM",null,null,null,null,null,null,null,null,null,null,null,null,null,null,null,null,null,null,null,null,null,null,null,null,null,null,null,null,null,null,null,null,null,"INTERFACE DATA"]
[null,"EMS Interface - Output signals",null,"Type","Min","Max","Unit","Description","Initial",null,"VED4_GENII","VED4_GENIII","VEP4_GENII","VEP4_GENII_7DCT","VEP4_GENIII","VEP4_GENII_HYBRID","VEP4_GENII_PS14","Hybrid Unique","GEP3_HEP7","GEP3_HRE","GEP3_PFI_HEV","GEP3_SPA","GEP3_BEV",null,"PVC","AC","AES","EL AC","MEC","OIL(Level)","Oil(Quality)","Oil","OilPrMon","VcMecPc","VcMecPcMon","REG","ScDep","CMB","DCL (Dia)","PEM","NVM","PpmHvem","PpmImob","PpmPsm","PpmSt","PpmRc","FSD","TmAwp","TmAf","TmHcc","TmEfl","TmStrt","Tm","TcDir","Diag_Monitor","CEC","Emiss",null,"NDdT [ms]","VEA 13wXX VCC request (Denso name or CRE number) for TT","Locked Supplier field:Denso VED4 13w46Status: PP","Locked Supplier field:Denso VEP4 13w35Status: PP","VEA GENIII VCC request (Denso name or CRE number) for X2","Locked\nSupplier field:Denso VED4 GENIII for X2","Locked Supplier field:Denso VEP4 GENIII for X2","VEA GENII 17wXX\nVCC request\n(Denso name or CRE number)\nfor VP update","Locked\nSupplier field:Denso VED4_GENII Status: 17E100","Locked\nSupplier field:Denso VEP4_GENII Status: 17E100","Locked\nSupplier field:Denso VEP4_GENII_HYBRID Status: 17E100","VEA SPA VCC request (Denso name or CRE number) 16H100","Locked Supplier field:Denso VED4 SPAStatus: SOP G400","Locked Supplier field:Denso VED4 SPAStatus: MP1 G200","Locked Supplier field:Denso VEP4 SPAStatus: 516H 16H100","Locked Supplier field:Denso VEP4 SPAStatus: SOP K400","VEA 516A. 54x VCC request (Denso name or CRE number) 16A100, 16B100","Locked Supplier field:Denso VED VEA 516A, 54X Status: 16D100","Locked Supplier field:Denso VEP VEA 516A, 54X Status: 16A100","Vsim Name SPA","Vsim Name minSPA","Vsim Name Chassi","Vsim Name OPTSAS","Comment","RBPetroldT [ms]","GEP3_SPA VCC request (Bosch name or CRE number)","Supplier field: GEP3_SPA, D000 SW"]
[null,null,null,null,null,null,null,null,null,null,null,null,null,null,null,null,null,""]
[null,"sVcAc_Z_AirCondCapReq",{"$f":"IF(COUNTIF(B:B,B5)>1,\"Duplicate\",\"\")","v":""},"Float32",0,100,"%","Actual aircond compressor displacement control duty",0,null,"D","D","D","D","D","D","D","-","D","D","D","D","-",null,"-","o","-","-","-","-","-","-","-","-","-","-","-","-","-","x","-","-","-","-","-","-","-","-","-","-","-","-","-","-","-","-","-",null,10,null,"Scv_ReqACComDisp","Scv_ReqACComDisp","Scv_ReqACComDisp","Scv_ReqACComDisp","Scv_ReqACComDisp",null,"Scv_ReqACComDisp","Scv_ReqACComDisp","Scv_ReqACComDisp",null,"Scv_ReqACComDisp","Scv_ReqACComDisp","Scv_ReqACComDisp","Scv_ReqACComDisp",null,"Scv_ReqACComDisp","Scv_ReqACComDisp","-","-","-","-",null,10,null,"ACCmpr_r"]
[null,"yVcEac_B_ChillerValveReq","","Bool","-","-","-","Chiller valve open request",0,null,"D","D","D","D","D","D","D","-","D","D","D","D","D",null,"-","o","-","-","-","-","-","-","-","-","-","-","-","-","-","-","-","-","-","-","-","-","-","-","-","-","-","-","-","-","x","-","-",null,160,null,"-","-","Ycv_ChillerValveReq","Ycv_ChillerValveReq","Ycv_ChillerValveReq",null,"NOT CONNECTED","Ycv_ChillerValveReq","Ycv_ChillerValveReq",null,"NOT CONNECTED","NOT CONNECTED","Ycv_ChillerValveReq","Ycv_ChillerValveReq",null,"NOT CONNECTED","Ycv_ChillerValveReq","-","-","-","-",null,100,null,"HVBVlv_r"]
[null,"sVcDeScl_D_MonitorTrig","","UInt8",0,255,"-","Cruise control monitor trig",0,null,"D","-","D","D","-","D","D","-","-","-","-","-","-",null,"o","-","-","-","-","-","-","-","-","-","-","-","-","-","-","-","-","-","-","-","-","-","-","-","-","-","-","-","-","-","-","-","-",null,40,null,"Scv_CCErrFrzFrm","Scv_CCErrFrzFrm",null,null,null,null,"Scv_CCErrFrzFrm","Scv_CCErrFrzFrm","Scv_CCErrFrzFrm",null,"Scv_CCErrFrzFrm","Scv_CCErrFrzFrm","Scv_CCErrFrzFrm","Scv_CCErrFrzFrm",null,"Scv_CCErrFrzFrm","Scv_CCErrFrzFrm","*T","*T","*T","*T",null,50,null,"-"]
[null,"sVcDeTfr_Tq_DrReq","","Float32",-500,500,"Nm","Driver request torque. Pedal map with filter.",0,null,"D","D","D","D","D","D","D","-","-","-","-","-","-",null,"o","-","-","-","-","-","-","x","-","-","-","-","-","-","-","x","-","-","-","-","-","-","-","-","-","-","-","-","-","-","-","-","-",null,10,null,"Scv_DrReqTrq","Scv_DrReqTrq","Scv_DrReqTrq","Scv_DrReqTrq","Scv_DrReqTrq",null,"Scv_DrReqTrq","Scv_DrReqTrq","Scv_DrReqTrq",null,"Scv_DrReqTrq","Scv_DrReqTrq","Scv_DrReqTrq","Scv_DrReqTrq",null,"Scv_DrReqTrq","Scv_DrReqTrq","*T","*T","*T","*T",null,10,null,"-"]
[null,"sVcDtcAs_Tq_Offset","","Float32",-1000,1000,"Nm","External anti shuffle offset torque request.",0,null,"-","-","-","-","-","-","-","-","D","D","D","D","-",null,"o","-","-","-","-","-","-","-","-","-","-","-","-","-","-","-","-","-","-","-","-","-","-","-","-","-","-","-","-","-","-","-","-",null,10,null,"-","-","-",null,null,null,"-","-","-",null,"-","-","-","-",null,"-","-","*T","*T","*T","*T",null,10,"sVcDtcAs_Tq_Offset","-"]
[null,"sVcDseWt_D_MonitorTrig","","UInt8",0,255,"-","Torque coordination monitor trig",0,null,"D","-","D","D","-","D","D","-","-","-","-","-","-",null,"o","-","-","-","-","-","-","-","-","-","-","-","-","-","-","-","-","-","-","-","-","-","-","-","-","-","-","-","-","-","-","-","-",null,10,null,"-","-",null,null,null,null,"Scv_TCErrFrzFrm","Scv_TCErrFrzFrm","Scv_TCErrFrzFrm",null,"Scv_TCErrFrzFrm","Scv_TCErrFrzFrm","Scv_TCErrFrzFrm","Scv_TCErrFrzFrm",null,"Scv_TCErrFrzFrm","Scv_TCErrFrzFrm","*T","*T","*T","*T",null,10,null,"-"]